bitfinex-derivatives/quotes_ETHF0:USTF0_20260203
["timestamp","ask_amount","ask_price","bid_price","bid_amount"]
[1770147843811,0.00325765,2199.3,2198.6,0.00465361]
[1770147844012,0.00325765,2199.0,2197.9,2.46816868]
[1770147844215,2.34479152,2199.0,2197.9,2.46816868]
[1770147844609,0.00325765,2198.9,2197.9,2.46816868]
[1770147845009,0.00325765,2198.9,2197.9,2.47184408]
[1770147845416,0.00325765,2198.6,2197.9,0.0036754]
[1770147845709,2.34804917,2198.6,2197.9,0.0036754]
[1770147845915,0.00325765,2198.5,2197.9,0.0036754]
[1770147846115,0.00325765,2198.4,2197.9,0.0036754]
[1770147846413,0.00325765,2198.2,2197.9,0.0036754]
[1770147846609,0.00325765,2198.1,2197.9,0.0036754]
[1770147846810,0.00325765,2198.0,2197.9,0.0036754]
[1770147847010,0.00325765,2198.0,2197.7,1.18529897]
[1770147847206,0.00325765,2197.8,2197.3,0.0791799]
[1770147847515,2.34479152,2197.7,2196.7,2.46816868]
[1770147847921,2.34479152,2197.7,2196.7,2.47338564]
[1770147848120,0.00325765,2197.6,2196.7,2.47338564]
[1770147848312,0.00325765,2197.6,2196.7,0.00521696]
[1770147848313,2.34479152,2197.6,2196.7,0.00521696]
[1770147848518,0.00325765,2197.3,2196.7,0.00521696]
[1770147848718,2.34479152,2197.6,2196.7,0.00521696]
[1770147848918,2.34479152,2197.6,2196.7,2.47338564]
[1770147849119,2.34479152,2197.9,2196.7,2.47338564]
[1770147850316,2.34979283,2198.2,2196.7,2.47338564]
[1770147850915,0.00500131,2198.2,2196.9,2.46816868]
[1770147852927,2.34979283,2198.2,2196.9,2.46816868]
[1770147853621,0.00500131,2198.2,2196.9,2.46816868]
[1770147855122,2.34979283,2198.2,2196.9,2.46816868]
[1770147857023,0.00500131,2198.2,2196.9,2.46816868]
[1770147857423,2.34979283,2198.2,2196.9,2.46816868]
[1770147860425,0.00500131,2198.2,2196.9,2.46816868]
[1770147860927,2.53796514,2198.2,2196.9,2.46816868]
[1770147861321,2.76568514,2198.2,2196.8,0.0791981]
[1770147861527,2.76568514,2198.2,2196.7,2.33535963]
[1770147862227,2.53796514,2198.2,2196.7,2.33535963]
[1770147862723,0.00500131,2198.2,2197.1,2.33014267]
[1770147864224,2.53796514,2198.2,2197.1,2.33014267]
[1770147864625,0.00500131,2198.2,2197.1,2.33014267]
[1770147868632,0.00500131,2198.2,2197.4,2.33014267]
[1770147868830,2.53296383,2199.1,2198.0,2.33014267]
[1770147869634,2.76059383,2199.1,2197.7,4.80387964]
[1770147869833,2.53296383,2198.9,2197.6,2.47373697]
[1770147870036,2.53296383,2198.7,2197.4,5.03167964]
[1770147870238,2.53296383,2198.7,2197.4,9.80218304]
[1770147870936,2.76063383,2198.7,2197.4,9.57438304]
[1770147871133,2.76063383,2198.7,2197.4,2.33014267]
[1770147871441,2.53296383,2199.7,2198.5,2.33014267]
[1770147871641,2.53296383,2199.4,2198.1,2.47373697]
[1770147871832,2.53296383,2199.1,2197.9,4.80387964]
[1770147872139,2.53296383,2198.8,2197.6,4.80387964]
[1770147872436,2.53728745,2198.8,2197.6,4.80832618]
[1770147872637,2.53728745,2198.8,2197.7,2.33014267]
[1770147873432,2.53728745,2198.8,2197.8,2.33014267]
[1770147874236,2.53728745,2198.8,2197.6,0.00444654]
[1770147875141,2.53296383,2198.5,2197.0,2.47373697]
[1770147875340,2.53296383,2198.5,2196.8,2.33014267]
[1770147875541,2.76068383,2198.2,2196.8,2.33014267]
[1770147875742,2.53296383,2198.1,2196.8,2.33014267]
[1770147876137,2.53296383,2198.1,2196.9,2.33014267]
[1770147876843,2.53296383,2198.1,2196.8,0.00325615]
[1770147878445,2.53296383,2197.9,2196.8,0.00325615]
[1770147880548,2.53296383,2197.8,2196.8,2.33339882]
[1770147881351,2.53296383,2198.3,2196.8,2.33339882]
[1770147882549,2.76067383,2198.3,2196.8,2.33339882]
[1770147882951,4.097,2198.4,2196.8,0.00325615]
[1770147882952,2.76069383,2198.1,2196.8,0.00325615]
[1770147884852,2.53296383,2198.1,2196.8,2.33339882]
[1770147886759,2.53296383,2198.3,2196.8,2.56125882]
[1770147886955,2.76067383,2198.3,2196.8,2.56125882]
[1770147887157,2.76067383,2198.3,2196.8,2.33339882]
[1770147887356,2.53296383,2198.1,2196.8,0.00325615]
[1770147887556,2.53296383,2197.9,2196.8,0.00325615]
[1770147887957,2.76071383,2197.9,2196.8,0.00325615]
[1770147888157,2.53296383,2197.9,2196.8,0.00325615]
[1770147888361,2.53296383,2197.8,2196.8,0.00325615]
[1770147890959,2.23402659,2198.0,2196.9,2.49281545]
[1770147891267,0.22747,2200.6,2198.4,0.22769]
[1770147891560,0.22749,2200.4,2198.4,2.72050545]
[1770147891957,8.65504091,2200.3,2198.1,2.51498164]
[1770147892156,0.22753,2200.0,2198.1,2.49834682]
[1770147893064,2.32301432,2199.5,2198.1,0.00553137]
[1770147893368,2.32301432,2199.3,2198.1,0.00553137]
[1770147893566,2.32301432,2199.1,2198.1,0.00553137]
[1770147894167,2.4393502,2198.9,2198.1,0.00553137]
[1770147896664,4.55704091,2198.8,2198.1,0.00553137]
[1770147896865,2.4393502,2198.7,2198.1,0.00553137]
[1770147897066,2.44430666,2198.7,2197.5,2.49281545]
[1770147897268,2.44430666,2198.7,2197.2,0.22781]
[1770147897269,2.4393502,2198.5,2197.2,0.22781]
[1770147897467,2.4393502,2198.5,2197.2,2.7041349]
[1770147898068,2.4393502,2198.5,2197.2,2.70921001]
[1770147898267,4.55704091,2198.4,2197.2,2.70921001]
[1770147898763,4.55704091,2198.4,2197.4,2.4763249]
[1770147899669,0.00495646,2198.7,2197.7,2.7040849]
[1770147899971,4.55704091,2198.6,2197.7,2.7040849]
[1770147900270,0.00495646,2198.7,2197.9,2.7040649]
[1770147900468,2.4393502,2199.1,2197.9,2.7040649]
[1770147900667,4.55704091,2199.0,2198.1,2.4763249]
[1770147901169,4.55704091,2199.0,2198.1,2.7040449]
[1770147901363,1.01645521,2199.0,2198.4,2.4763249]
[1770147901564,2.4393502,2199.7,2198.5,0.22768]
[1770147901763,2.4393502,2199.7,2198.0,9.28198164]
[1770147901969,2.4393502,2199.7,2197.9,0.22774]
[1770147902565,2.44327919,2199.7,2197.9,0.22774]
[1770147903267,2.44327919,2199.7,2198.3,0.2277]
[1770147903770,2.44327919,2199.7,2198.5,0.22768]
[1770147904668,0.22761,2199.3,2197.6,2.51498164]
[1770147904867,2.51830946,2199.1,2197.3,0.2278]
[1770147905170,2.51830946,2199.1,2197.3,0.30529232]
[1770147905171,2.74592946,2199.1,2197.3,0.30529232]
[1770147905565,2.51830946,2199.1,2197.2,0.08256743]
[1770147905766,2.51830946,2199.1,2197.7,0.22776]
[1770147905971,2.51830946,2199.1,2197.9,0.22774]
[1770147906266,2.51830946,2199.1,2197.8,0.07749232]
[1770147906663,2.51830946,2199.1,2198.1,0.22772]
[1770147906869,2.51830946,2199.1,2197.7,0.43197631]
[1770147907068,2.51830946,2199.1,2197.8,0.43197631]
[1770147907472,2.51830946,2199.1,2198.0,0.22773]
[1770147908466,2.51830946,2199.1,2198.2,0.22772]
[1770147908870,2.51830946,2199.1,2197.9,0.34266327]
[1770147909065,2.4393502,2199.6,2198.4,0.22769]
[1770147909265,2.4393502,2199.6,2197.9,0.22775]
[1770147909466,2.6669802,2199.1,2197.4,0.22779]
[1770147910268,2.4393502,2198.8,2197.4,0.22779]
[1770147910472,2.4393502,2198.8,2197.5,0.22778]
[1770147911277,2.4393502,2198.8,2197.5,0.33007203]
[1770147912576,2.4393502,2198.8,2197.8,0.22776]
[1770147912773,2.4393502,2198.8,2197.3,0.22781]
[1770147913175,2.4393502,2198.8,2197.6,0.22778]
[1770147913375,2.4393502,2198.8,2197.8,2.7123961]
[1770147913569,2.4393502,2199.1,2198.0,0.22773]
[1770147915879,2.4393502,2199.1,2198.3,0.2277]
[1770147916378,2.4393502,2199.1,2197.8,0.22775]
[1770147917079,2.4393502,2199.1,2197.9,0.22774]
[1770147917276,2.4393502,2199.1,2198.0,0.22773]
[1770147918079,2.4393502,2199.1,2197.7,2.89676]
[1770147918476,2.4393502,2198.9,2197.6,4.096]
[1770147918880,2.4393502,2198.9,2197.6,4.32378]
[1770147919175,2.4393502,2198.9,2197.7,0.22777]
[1770147921677,2.4393502,2198.9,2197.4,2.51498164]
[1770147921984,2.4393502,2198.9,2197.4,2.74278164]
[1770147923980,2.39408071,2198.7,2197.4,0.2278]
[1770147924384,2.39408071,2198.7,2197.2,0.00507511]
[1770147925187,2.62174071,2198.7,2197.2,0.00507511]
[1770147929590,6.765,2198.8,2197.2,0.00507511]
[1770147929591,2.36581521,2198.5,2197.2,0.00507511]
[1770147929884,2.36581521,2198.1,2197.2,0.00507511]
[1770147930088,2.36970096,2198.1,2197.2,0.00507511]
[1770147930487,2.36327766,2197.9,2196.6,4.096]
[1770147930888,2.36583545,2197.8,2196.3,5.18498164]
[1770147931087,2.36583545,2197.8,2196.2,5.30659278]
[1770147931294,2.36583545,2197.8,2196.4,0.60655632]
[1770147931592,2.36583545,2197.8,2196.4,0.2321946]
[1770147936692,2.36583545,2197.8,2196.4,0.0042946]
[1770147937291,2.35077452,2197.5,2196.4,0.0042946]
[1770147937496,2.7123961,2197.8,2195.6,0.22798]
[1770147937497,2.57860452,2197.1,2195.6,0.22798]
[1770147937693,2.35077452,2197.0,2195.6,0.22798]
[1770147938495,2.35077452,2197.0,2195.6,0.23299211]
[1770147939592,2.35077452,2196.8,2195.6,0.00501211]
[1770147941801,2.35077452,2196.8,2195.7,0.54564309]
[1770147941993,2.35077452,2196.8,2195.6,2.71740821]
[1770147941994,2.35077452,2197.4,2196.1,0.22793]
[1770147942197,2.35077452,2197.4,2196.3,0.2279]
[1770147942897,2.35077452,2197.4,2196.3,0.77229633]
[1770147943299,2.35077452,2197.4,2196.3,0.2279]
[1770147943994,2.35077452,2197.4,2195.8,9.51294164]
[1770147944199,2.35077452,2197.0,2195.6,0.00501211]
[1770147944593,2.35077452,2196.7,2195.6,0.00501211]
[1770147945394,2.57864452,2196.7,2195.6,0.00501211]
[1770147948402,2.7123961,2197.0,2195.2,0.07924751]
[1770147948705,2.7123961,2197.0,2194.7,0.22807]
[1770147948706,2.35077452,2196.3,2194.7,0.22807]
[1770147948900,2.35077452,2196.0,2194.8,0.07926358]
[1770147949098,2.35077452,2195.9,2194.3,0.22812]
[1770147949401,2.35535029,2195.9,2194.3,0.3132148]
[1770147949603,2.35077452,2195.7,2194.3,0.0850948]
[1770147951504,2.35077452,2195.7,2194.5,0.22809]
[1770147951709,2.35077452,2195.7,2194.7,0.22807]
[1770147952208,2.35077452,2195.7,2194.3,2.60007644]
[1770147952209,2.35077452,2195.7,2194.3,0.0850948]
[1770147953907,2.57875452,2195.7,2194.3,0.0850948]
[1770147954305,2.35077452,2195.7,2194.3,0.75168421]
[1770147954909,2.35077452,2195.7,2194.3,0.0850948]
[1770147956707,2.35077452,2195.7,2193.7,3.7145806]
[1770147956708,2.44376686,2195.5,2193.7,0.67154213]
[1770147956903,2.44376686,2195.5,2193.7,0.89972213]
[1770147957209,2.44376686,2195.5,2193.9,0.67154213]
[1770147957605,2.44376686,2195.5,2193.9,0.00549057]
[1770147958604,2.44376686,2195.1,2193.9,0.00549057]
[1770147959007,2.44376686,2195.1,2193.9,0.53445805]
[1770147959511,2.44376686,2195.1,2193.9,0.00549057]
[1770147960411,2.44376686,2194.9,2193.9,0.00549057]
[1770147960811,2.44376686,2194.9,2193.4,0.07931543]
[1770147961603,2.44376686,2194.7,2193.4,0.07931543]
[1770147961804,2.44376686,2194.6,2193.4,0.07931543]
[1770147964712,2.44376686,2194.6,2193.1,0.22824]
[1770147965309,2.67185686,2194.6,2193.0,0.0793317]
[1770147965613,2.44376686,2194.4,2193.0,0.0793317]
[1770147965806,2.44376686,2194.4,2193.0,0.37222375]
[1770147966009,2.44376686,2194.4,2193.1,0.29289205]
[1770147966207,2.44376686,2195.3,2193.4,0.29289205]
[1770147966508,2.44376686,2195.3,2194.2,0.22812]
[1770147967007,4.33553577,2195.9,2194.8,0.22806]
[1770147967008,0.00457577,2195.9,2194.8,0.22806]
[1770147967204,0.00457577,2195.9,2194.4,2.46305449]
[1770147967409,2.44910116,2195.6,2194.1,2.46305449]
[1770147967612,0.22799,2195.6,2194.1,2.46305449]
[1770147967814,0.228,2195.5,2193.8,2.69122449]
[1770147968110,0.22802,2195.3,2193.6,2.46305449]
[1770147968814,4.103,2195.8,2193.8,2.37257198]
[1770147969015,2.44376686,2195.7,2193.8,2.37257198]
[1770147969311,2.44376686,2195.5,2193.8,2.37257198]
[1770147969506,4.103,2195.8,2193.5,6.47557198]
[1770147969507,2.44376686,2195.2,2193.5,6.47557198]
[1770147969911,2.44910116,2194.5,2193.0,0.0793317]
[1770147970115,2.44376686,2194.4,2193.0,0.0793317]
[1770147970305,2.44376686,2194.4,2193.0,2.45190368]
[1770147970511,2.44376686,2194.7,2193.6,2.60076198]
[1770147970712,2.44376686,2194.7,2193.6,0.22819]
[1770147970914,2.44376686,2194.7,2193.3,2.26699116]
[1770147971516,2.44376686,2194.7,2193.3,2.49521116]
[1770147971816,2.44376686,2194.7,2193.5,2.26699116]
[1770147972012,2.44376686,2194.7,2193.5,2.49519116]
[1770147972514,2.44376686,2194.6,2193.5,0.2282]
[1770147973210,2.44376686,2194.6,2193.0,8.48271766]
[1770147973211,2.44376686,2194.6,2193.3,2.51189962]
[1770147973715,2.44376686,2194.6,2193.5,2.28367962]
[1770147973910,2.44376686,2194.9,2193.6,2.51186962]
[1770147974114,2.44376686,2195.8,2194.1,2.51181962]
[1770147974416,2.44376686,2195.7,2194.1,2.51181962]
[1770147974817,2.44376686,2195.7,2194.3,2.28070917]
[1770147975018,2.44376686,2195.7,2194.3,2.50882917]
[1770147975215,2.44376686,2195.5,2194.0,4.8067679]
[1770147975517,2.44376686,2195.5,2194.2,4.8067679]
[1770147975712,2.44376686,2195.5,2194.3,2.28070917]
[1770147976110,2.44376686,2195.5,2194.2,2.52605873]
[1770147976315,2.44376686,2195.4,2194.1,2.28070917]
[1770147976512,2.44376686,2195.2,2194.1,2.28070917]
[1770147977521,2.44376686,2195.1,2194.0,7.46101737]
[1770147977717,2.44376686,2195.1,2194.0,7.23286737]
[1770147977916,2.44376686,2195.1,2194.1,2.22621996]
[1770147978222,2.44376686,2195.1,2194.2,2.22621996]
[1770147978518,2.44376686,2195.0,2194.1,2.75419873]
[1770147978716,2.44376686,2195.0,2194.0,4.70680864]
[1770147978912,2.44376686,2194.8,2193.9,9.30305873]
[1770147979318,2.44376686,2194.6,2193.6,4.95118478]
[1770147980513,2.44376686,2194.6,2193.6,4.72299478]
[1770147980721,2.36257258,2194.5,2193.5,2.52605873]
[1770147981121,2.36257258,2194.4,2193.4,2.52605873]
[1770147981322,2.36257258,2194.4,2193.3,2.52605873]
[1770147981523,2.36257258,2194.2,2193.1,2.674]
[1770147981722,2.36257258,2194.0,2193.0,0.0793317]
[1770147982114,2.36257258,2194.0,2193.0,2.60539043]
[1770147982315,4.81167374,2193.8,2193.0,2.52605873]
[1770147982516,2.36257258,2193.8,2192.9,2.52605873]
[1770147982722,2.36257258,2193.6,2192.8,4.103]
[1770147982921,2.36257258,2193.6,2192.7,2.52605873]
[1770147983118,2.36257258,2193.4,2192.4,2.52605873]
[1770147983323,2.67903327,2194.2,2192.7,2.22972999]
[1770147983324,2.36257258,2193.7,2192.7,2.22972999]
[1770147983623,0.00503327,2194.2,2193.4,2.45793999]
[1770147983916,2.36257258,2194.6,2193.6,2.22972999]
[1770147984118,31.401,2195.6,2193.2,4.96266519]
[1770147984119,2.36257258,2194.4,2193.2,0.22823]
[1770147984324,2.36257258,2194.2,2193.2,0.22823]
[1770147984525,2.36257258,2194.2,2193.0,2.45797999]
[1770147984818,2.36257258,2194.2,2193.0,3.7145806]
[1770147985019,2.36257258,2194.0,2193.0,0.00538747]
[1770147985626,0.00472563,2194.2,2193.0,2.47026083]
[1770147986425,2.36729821,2194.2,2193.0,7.12902536]
[1770147986621,2.36257258,2194.1,2193.0,2.47026083]
[1770147986924,0.00472563,2194.2,2193.0,2.47026083]
[1770147987221,0.00472563,2194.2,2193.1,2.27335718]
[1770147987421,2.36729821,2194.2,2193.2,2.674]
[1770147987727,2.36257258,2194.1,2193.0,2.27874465]
[1770147987919,0.00472563,2194.2,2193.3,2.27335718]
[1770147988119,0.00472563,2194.2,2193.4,4.94735718]
[1770147988320,2.36729821,2194.2,2193.4,2.674]
[1770147988624,2.44910116,2193.9,2193.4,2.674]
[1770147988924,2.36257258,2194.1,2193.0,0.00538747]
[1770147988925,2.44910116,2193.7,2193.0,2.67938747]
[1770147989125,2.36729821,2194.2,2193.1,2.28179508]
[1770147989318,0.00472563,2194.2,2193.2,2.51002508]
[1770147989519,0.00472563,2194.2,2193.3,2.51001508]
[1770147989925,0.00472563,2194.2,2193.4,2.51000508]
[1770147990425,2.45382679,2194.2,2193.4,0.22821]
[1770147990627,4.81639937,2194.2,2193.1,5.99637568]
[1770147990819,2.36257258,2194.1,2193.2,4.64892507]
[1770147991020,2.36257258,2193.9,2193.0,6.39396807]
[1770147991326,2.36257258,2194.1,2193.1,2.27501848]
[1770147991727,2.36257258,2194.0,2193.0,0.23363747]
[1770147991930,2.36257258,2193.9,2193.0,0.23363747]
[1770147992125,4.81167374,2193.9,2193.0,0.23363747]
[1770147992326,2.44910116,2193.8,2193.0,0.23363747]
[1770147992524,2.36257258,2193.8,2193.0,0.00538747]
[1770147992725,2.44910116,2193.6,2193.0,0.00538747]
[1770147993024,2.44910116,2193.7,2193.0,0.00538747]
[1770147994123,0.00472563,2194.2,2193.3,2.50930212]
[1770147994424,0.00472563,2194.2,2193.4,5.18329212]
[1770147994726,2.36257258,2195.9,2193.7,0.22818]
[1770147994930,2.36257258,2194.8,2193.7,2.53177828]
[1770147995424,2.36257258,2195.4,2194.2,2.53171828]
[1770147995627,4.32641374,2195.4,2194.2,5.20671828]
[1770147995823,0.00323492,2195.4,2194.7,0.22808]
[1770147996122,2.36257258,2195.7,2194.8,2.675]
[1770147996323,4.32641374,2195.6,2194.8,2.675]
[1770147996523,2.36257258,2196.0,2194.9,2.30359828]
[1770147997130,2.36257258,2195.9,2194.9,2.30359828]
[1770147997326,2.36257258,2195.7,2194.7,0.0051788]
[1770147997621,2.36257258,2195.2,2194.2,0.22813]
[1770147997827,2.36257258,2195.2,2194.1,2.674]
[1770147998022,2.36257258,2195.5,2194.2,2.29062883]
[1770147998220,2.36257258,2195.5,2194.3,2.51874883]
[1770147998421,2.36257258,2195.4,2194.1,2.674]
[1770147998726,2.36257258,2195.4,2194.1,4.96868576]
[1770147999025,4.32641374,2195.3,2194.1,4.96868576]
[1770147999226,2.36257258,2195.3,2194.1,4.96868576]
[1770147999427,4.32641374,2195.3,2194.1,4.96868576]
[1770147999628,0.22796,2195.9,2194.1,4.96868576]
[1770147999629,2.36257258,2195.8,2194.3,2.24984969]
[1770147999928,2.36257258,2195.8,2194.7,2.47792969]
[1770148000127,2.36257258,2195.8,2194.8,4.92384969]
[1770148000323,2.36257258,2195.8,2194.8,2.674]
[1770148000528,1.96384116,2195.5,2194.8,2.674]
[1770148000730,4.32641374,2195.7,2194.8,2.674]
[1770148000928,1.96384116,2195.6,2194.8,2.674]
[1770148001128,1.96384116,2195.5,2194.8,2.674]
[1770148001431,0.00339407,2196.0,2194.8,2.674]
[1770148001432,1.96384116,2195.3,2194.8,2.674]
[1770148001629,2.36257258,2195.6,2194.8,2.674]
[1770148002229,2.36257258,2195.9,2194.6,2.47955284]
[1770148002430,2.36257258,2195.8,2194.7,2.674]
[1770148002832,4.32641374,2195.8,2194.7,2.674]
[1770148003133,4.32641374,2195.8,2194.7,4.94711451]
[1770148003328,2.36257258,2195.6,2194.7,5.17518451]
[1770148003533,2.36257258,2195.6,2194.7,2.90207]
[1770148003832,1.96384116,2195.5,2194.7,2.90207]
[1770148004631,2.36257258,2195.6,2194.7,2.90207]
[1770148004832,2.36257258,2195.4,2194.2,2.49758654]
[1770148005032,2.36257258,2195.4,2194.3,2.674]
[1770148005233,2.36257258,2195.7,2194.4,2.49755654]
[1770148005436,2.36257258,2195.6,2194.4,2.49755654]
[1770148005636,0.00339407,2196.0,2194.4,2.49755654]
[1770148005637,4.32641374,2195.4,2194.4,2.49755654]
[1770148005936,2.36257258,2195.4,2194.4,2.49755654]
[1770148006137,4.32641374,2195.1,2194.4,0.2281]
[1770148006337,4.32641374,2195.4,2194.4,0.2281]
[1770148006538,4.32641374,2195.4,2194.3,4.94345654]
[1770148006539,1.96384116,2195.6,2194.5,2.26945654]
[1770148006735,2.36257258,2195.7,2194.5,2.26945654]
[1770148007234,2.36596665,2196.0,2195.0,0.22805]
[1770148007435,2.36257258,2195.7,2194.5,0.22809]
[1770148007637,2.36257258,2195.7,2194.4,2.24917927]
[1770148007837,2.36257258,2195.6,2194.7,0.22808]
[1770148008238,1.96384116,2195.5,2194.7,0.22808]
[1770148008440,1.96384116,2195.4,2194.7,0.22808]
[1770148008836,1.96384116,2195.2,2194.5,2.673]
[1770148009037,1.96384116,2195.3,2194.5,2.673]
[1770148009238,4.32641374,2195.2,2194.5,2.673]
[1770148009435,2.36257258,2195.2,2194.5,2.673]
[1770148009743,1.96384116,2194.9,2194.5,2.673]
[1770148010140,2.36257258,2194.8,2194.2,4.103]
[1770148010633,2.54320471,2195.8,2194.4,2.41479349]
[1770148010837,2.54320471,2195.6,2194.4,2.41479349]
[1770148011143,2.54320471,2195.5,2194.4,2.41479349]
[1770148011438,2.54320471,2195.5,2194.5,2.41478349]
[1770148011843,2.54320471,2195.5,2194.7,0.22808]
[1770148012337,2.54320471,2195.8,2194.8,0.22807]
[1770148012538,2.54320471,2195.8,2194.8,2.41476349]
[1770148012735,3.99272587,2195.8,2194.9,0.22805]
[1770148012939,1.44952116,2195.7,2194.9,0.22805]
[1770148013239,2.54320471,2195.4,2194.7,2.673]
[1770148013541,2.54320471,2195.2,2194.2,4.8210108]
[1770148013736,2.54320471,2195.2,2194.2,2.673]
[1770148013944,1.44952116,2195.0,2194.1,5.05328786]
[1770148014138,1.44952116,2195.1,2194.1,5.05328786]
[1770148014335,2.39270478,2195.1,2194.1,2.90519693]
[1770148014540,1.44952116,2194.9,2194.1,2.90519693]
[1770148014945,2.39270478,2195.1,2194.1,2.90519693]
[1770148015242,1.44952116,2194.6,2194.1,2.90519693]
[1770148015444,2.39270478,2194.8,2194.1,2.67705693]
[1770148015642,2.39270478,2194.5,2194.1,2.67705693]
[1770148016742,2.39270478,2194.5,2193.4,3.7145806]
[1770148016743,2.38159157,2193.9,2192.6,0.07935142]
[1770148016947,2.38159157,2193.9,2192.4,2.36031699]
[1770148017243,2.38159157,2193.9,2192.6,2.36031699]
[1770148017641,2.38649319,2193.9,2192.6,2.36463529]
[1770148018349,2.38159157,2193.7,2192.6,2.36463529]
[1770148018544,2.38159157,2193.7,2192.3,7.75418156]
[1770148019044,2.38159157,2193.7,2192.3,5.03331699]
[1770148019245,2.38159157,2193.7,2192.4,2.36031699]
[1770148019445,2.38159157,2193.7,2192.7,2.36031699]
[1770148019944,2.38159157,2193.7,2192.3,2.36031699]
[1770148020350,2.38159157,2193.7,2192.3,6.45141103]
[1770148020648,2.38159157,2193.7,2192.2,0.60054039]
[1770148021442,2.38159157,2193.7,2192.6,2.72086457]
[1770148021647,2.38159157,2193.7,2192.9,8.65109405]
[1770148021844,2.38159157,2193.7,2192.6,2.72086457]
[1770148022049,2.38159157,2193.7,2192.6,2.94916457]
[1770148022247,0.00490162,2193.9,2193.3,8.65109405]
[1770148022442,2.3976064,2193.9,2192.8,2.36031699]
[1770148022648,2.3976064,2193.9,2193.1,8.65109405]
[1770148022953,2.3976064,2193.9,2193.2,8.65109405]
[1770148023354,2.3976064,2193.9,2193.4,8.65109405]
[1770148023549,2.3976064,2193.9,2193.2,8.65109405]
[1770148023847,2.3976064,2193.9,2192.8,2.36031699]
[1770148024054,0.00490162,2193.9,2193.4,8.65109405]
[1770148024348,0.00490162,2193.9,2193.3,8.65109405]
[1770148024553,0.00490162,2193.9,2193.5,8.65109405]
[1770148024750,0.2281,2194.5,2193.4,3.70068777]
[1770148025052,0.35975561,2194.8,2193.1,0.22824]
[1770148025249,4.104,2194.9,2193.1,2.78103988]
[1770148025450,4.104,2194.9,2192.8,2.72086457]
[1770148025754,0.22814,2194.2,2192.8,0.00388622]
[1770148025953,2.72086457,2194.7,2192.8,0.00388622]
[1770148026252,0.22818,2193.8,2192.8,0.00388622]
[1770148026455,0.22819,2193.7,2192.8,0.00388622]
[1770148026655,0.22819,2193.7,2192.0,0.22836]
[1770148026656,6.779,2194.5,2192.2,2.55279988]
[1770148026954,0.22815,2194.1,2192.4,2.55279988]
[1770148027656,0.22824,2193.2,2192.4,0.00101541]
[1770148027859,4.33698321,2193.2,2191.5,6.82486457]
[1770148028057,4.33698321,2193.2,2191.5,10.52555234]
[1770148028351,0.23298321,2193.2,2191.5,13.07835222]
[1770148028552,4.33225,2193.1,2191.5,13.07835222]
[1770148028852,4.33225,2193.1,2191.5,4.104]
[1770148029255,0.22826,2193.0,2191.5,4.104]
[1770148029852,0.22827,2192.9,2191.5,4.104]
[1770148030055,0.22827,2192.9,2191.3,0.22843]
[1770148030254,0.22827,2192.9,2191.4,3.70068777]
[1770148030456,0.22827,2192.9,2191.5,2.55279988]
[1770148030956,0.22827,2192.9,2191.6,3.70068777]
[1770148031148,0.22827,2192.9,2191.5,3.70068777]
[1770148031350,0.22827,2192.9,2191.6,2.55279988]
[1770148031753,0.22827,2192.9,2191.7,3.70068777]
[1770148032056,0.22827,2192.9,2191.5,3.70068777]
[1770148033050,0.00474321,2193.2,2191.8,6.25348765]
[1770148033256,0.00474321,2193.2,2191.6,3.70068777]
[1770148033455,0.22825,2193.1,2191.6,3.70068777]
[1770148033956,0.22825,2193.1,2191.7,3.70068777]
[1770148034157,0.22825,2193.1,2191.6,3.70068777]
[1770148034357,0.22825,2193.1,2191.3,0.07938925]
[1770148034358,0.00474321,2193.2,2192.1,2.55279988]
[1770148034755,0.00474321,2193.2,2192.4,3.70068777]
[1770148034954,0.00474321,2193.2,2191.8,2.55279988]
[1770148035254,0.00474321,2193.2,2191.8,6.25348765]
[1770148035459,0.22827,2192.9,2191.5,2.55279988]
[1770148035758,2.68074321,2193.2,2191.5,2.55279988]
[1770148035759,0.22828,2192.8,2191.5,2.55279988]
[1770148036459,0.22828,2192.8,2191.2,2.55279988]
[1770148036654,0.22828,2192.8,2191.4,2.55279988]
[1770148036962,2.68074321,2193.2,2191.1,2.55279988]
[1770148036963,2.72086457,2192.9,2191.1,2.55279988]
[1770148037153,2.72086457,2192.5,2190.3,2.55279988]
[1770148037353,2.72086457,2192.5,2190.5,2.55279988]
[1770148037354,0.22831,2192.5,2190.5,2.55279988]
[1770148037554,7.01032,2192.4,2190.7,2.55279988]
[1770148037857,0.22833,2192.3,2190.7,2.55279988]
[1770148038057,6.782,2192.4,2190.7,2.55279988]
[1770148038457,0.22836,2192.0,2190.4,5.50218445]
[1770148038762,0.22836,2192.0,2190.5,2.55279988]
[1770148039260,0.22836,2192.0,2190.6,3.70068777]
[1770148039461,0.22838,2191.8,2190.2,2.55279988]
[1770148039660,0.22838,2191.8,2190.3,5.27366445]
[1770148039860,0.22838,2191.8,2190.4,2.55279988]
[1770148040257,0.22838,2191.8,2190.4,6.25348765]
[1770148040462,4.33538,2191.8,2190.7,3.70068777]
[1770148040762,0.35441869,2192.1,2190.5,2.55279988]
[1770148040960,4.107,2192.2,2190.9,2.78543494]
[1770148041153,4.107,2192.9,2191.2,2.55696494]
[1770148041359,4.46874527,2192.9,2191.2,2.55696494]
[1770148041555,0.22832,2192.4,2191.2,2.55696494]
[1770148041760,0.22832,2192.4,2190.7,2.55696494]
[1770148041957,7.18960984,2192.9,2191.0,2.55696494]
[1770148042161,7.18960984,2192.9,2190.7,2.55696494]
[1770148042162,0.22833,2192.3,2190.7,2.55696494]
[1770148042561,7.18960984,2192.9,2190.7,2.55696494]
[1770148042562,7.18960984,2192.9,2190.8,3.70068777]
[1770148042758,0.22835,2192.1,2190.7,2.55696494]
[1770148043160,0.2283,2192.7,2191.2,6.25765271]
[1770148043361,4.108,2192.6,2191.2,2.55696494]
[1770148043560,0.22831,2192.5,2191.2,2.55696494]
[1770148043765,0.22832,2192.4,2191.2,2.55696494]
[1770148043966,0.22832,2192.4,2191.3,3.70068777]
[1770148044163,4.108,2192.7,2191.6,3.70068777]
[1770148044363,4.108,2192.7,2191.4,2.55696494]
[1770148044762,4.108,2192.7,2191.6,3.70068777]
[1770148045165,0.22831,2192.5,2191.7,3.70068777]
[1770148045467,0.22831,2192.5,2191.5,3.70068777]
[1770148045662,4.108,2192.7,2190.3,2.52095369]
[1770148045859,0.22834,2192.2,2190.3,2.55696494]
[1770148046162,3.37086457,2192.4,2190.5,2.55696494]
[1770148046163,0.22835,2192.1,2190.5,2.55696494]
[1770148046768,2.72086457,2192.0,2189.9,2.55696494]
[1770148046960,2.94928457,2192.0,2189.9,2.55696494]
[1770148047167,0.22842,2191.5,2189.9,2.55696494]
[1770148047366,0.23271268,2191.5,2189.9,2.55696494]
[1770148047564,0.00429268,2191.5,2190.1,2.55696494]
[1770148047765,0.22832,2192.4,2190.7,2.55696494]